fUST/lending_fUST_20250824
["ID","MTS","AMOUNT","RATE_DAILY","PERIOD"]
[381072216,1755996653637,-151.0,0.000344,14]
[381072217,1755996653647,-151.0,0.000344,14]
[381072218,1755996653656,-151.0,0.000344,14]
[381072219,1755996653665,-293.9988399,0.00034657,30]
[381072220,1755996653674,-153.0,0.00034657,30]
[381072221,1755996653683,-309.9403112,0.00034657,30]
[381072222,1755996653693,-153.0,0.00034657,30]
[381072223,1755996653702,-724.8946215,0.00034657,30]
[381072224,1755996653762,-160.9016298,0.00034657,30]
[381072225,1755996653771,-1122.16822069,0.00034909,2]
[381072226,1755996653780,-252.26271963,0.00035112,7]
[381072227,1755996653789,-250.0,0.00035112,2]
[381072228,1755996653799,-864.62199475,0.00035439,24]
[381072229,1755996653809,-153.0,0.00035479,30]
[381072230,1755996653818,-153.0,0.00035479,30]
[381072231,1755996653827,-153.0,0.00035479,30]
[381072232,1755996653837,-501.7,0.00035616,120]
[381072233,1755996653847,-156.0,0.00036,120]
[381072234,1755996653856,-501.7,0.00036986,120]
[381072235,1755996653865,-9171.7544287,0.00037155,3]
[381072236,1755996653874,-864.62199475,0.00037166,28]
[381072237,1755996653884,-9573.5,0.000374,14]
[381072238,1755996653894,-446.30682996,0.00038,120]
[381072239,1755996653903,-232.37252479,0.00038,3]
[381072240,1755996653912,-973.0,0.00038098,2]
[381072241,1755996653921,-639.16,0.00038098,2]
[381072242,1755996653931,-2154.0,0.00038098,2]
[381072243,1755996653940,-1122.16822069,0.00038263,2]
[381072244,1755996653950,-684338.843326,0.000383,10]
[381072245,1755996653963,-501.7,0.00038356,120]
[381072246,1755996653972,-500.0,0.00038356,5]
[381072247,1755996653982,-156.0,0.000386,120]
[381072248,1755996653991,-201.93286099,0.00038652,2]
[381072249,1755996654000,-189.66517374,0.00038652,2]
[381072250,1755996654009,-151.0,0.00038652,2]
[381072251,1755996654019,-2030.296672,0.00038652,2]
[381072252,1755996654028,-151.0,0.00038652,2]
[381072253,1755996654038,-151.0,0.00038652,2]
[381072254,1755996654048,-151.0,0.00038652,2]
[381072255,1755996654057,-300.0,0.00038652,2]
[381072256,1755996654066,-500.0,0.00038652,2]
[381072257,1755996654076,-357.74159952,0.00038652,2]
[381072258,1755996654085,-151.0,0.00038652,2]
[381072259,1755996654095,-500.0,0.00038652,2]
[381072260,1755996654104,-151.0,0.00038652,2]
[381072261,1755996654113,-500.0,0.00038652,2]
[381072262,1755996654123,-151.0,0.00038652,2]
[381072263,1755996654132,-500.0,0.00038652,2]
[381072264,1755996654142,-151.0,0.00038652,2]
[381072265,1755996654153,-151.0,0.00038652,2]
[381072266,1755996654163,-151.0,0.00038652,2]
[381072267,1755996654172,-151.0,0.00038652,2]
[381072268,1755996654181,-5020.05923196,0.00038652,2]
[381072269,1755996654191,-250.0,0.00038652,2]
[381072270,1755996654200,-250.0,0.00038652,2]
[381072271,1755996654209,-250.0,0.00038652,2]
[381072272,1755996654219,-250.0,0.00038652,2]
[381072273,1755996654228,-250.0,0.00038652,2]
[381072274,1755996654240,-250.0,0.00038652,2]
[381072275,1755996654249,-250.0,0.00038652,2]
[381072276,1755996654258,-250.0,0.00038652,2]
[381072277,1755996654267,-250.0,0.00038652,2]
[381072278,1755996654276,-250.0,0.00038652,2]
[381072279,1755996654285,-250.0,0.00038652,2]
[381072280,1755996654294,-250.0,0.00038652,2]
[381072281,1755996654303,-2105.41764886,0.00038707,2]
[381072282,1755996654312,-2183.31810187,0.00038762,2]
[381072283,1755996654321,-2264.10087164,0.00038817,2]
[381072284,1755996654330,-500.0,0.00038832,7]
[381072285,1755996654339,-2347.87260389,0.00038872,2]
[381072286,1755996654349,-864.62199475,0.00038892,32]
[381072287,1755996654359,-2434.74389024,0.00038927,2]
[381072288,1755996654368,-2524.82941417,0.00038982,2]
[381072289,1755996654378,-2618.2481025,0.00039037,2]
[381072290,1755996654387,-2715.12328229,0.00039092,2]
[381072291,1755996654397,-2815.58284374,0.00039147,2]
[381072292,1755996654407,-265.21993475,0.000392,2]
[381072293,1755996654416,-2919.75940895,0.00039202,2]
[381072294,1755996654426,-3027.79050709,0.00039257,2]
[381072295,1755996654435,-3139.81875585,0.00039312,2]
[381072296,1755996654444,-3255.99204981,0.00039367,2]
[381072297,1755996654454,-3376.46375566,0.00039422,2]
[381072298,1755996654463,-3501.39291462,0.00039477,2]
[381072299,1755996654472,-3630.94445246,0.00039532,2]
[381072300,1755996654481,-3765.2893972,0.00039587,2]
[381072301,1755996654490,-501.7,0.00039726,120]
[381072302,1755996654499,-500.0,0.00039806,15]
[381072303,1755996654508,-864.62199475,0.00040619,36]
[381072304,1755996654518,-500.0,0.00040694,30]
[381072305,1755996654527,-501.7,0.00041095,120]
[381072306,1755996654536,-225.73,0.00041096,120]
[381072307,1755996654545,-156.0,0.000411,120]
[381072308,1755996654554,-1122.16822069,0.00041618,28]
[381072309,1755996654563,-500.0,0.00042008,30]
[381072310,1755996654572,-156.552375,0.0004234,2]
[381072311,1755996654581,-864.62199475,0.00042345,39]
[381072312,1755996654590,-160.0,0.00042411,3]
[381072313,1755996654599,-160.0,0.00042411,5]
[381072314,1755996654609,-501.7,0.00042465,120]
[381072315,1755996654618,-9171.7544287,0.0004249,3]
[381072316,1755996654627,-161.58,0.000425,7]
[381072317,1755996654637,-151.0,0.000425,120]
[381072318,1755996654646,-151.0,0.000425,14]
[381072319,1755996654656,-151.0,0.000425,14]
[381072320,1755996654666,-151.0,0.000425,14]
[381072321,1755996654675,-151.0,0.000425,120]
[381072322,1755996654685,-151.0,0.000425,14]
[381072323,1755996654694,-151.0,0.000425,14]
[381072324,1755996654703,-151.0,0.000425,14]
[381072325,1755996654712,-151.0,0.000425,14]
[381072326,1755996654721,-151.0,0.000425,14]
[381072327,1755996654731,-235.844624,0.000425,120]
[381072328,1755996654740,-151.0,0.000425,14]
[381072329,1755996654750,-151.0,0.000425,14]
[381072330,1755996654759,-232.99864,0.000425,14]
[381072331,1755996654768,-151.0,0.000425,120]
[381072332,1755996654777,-151.0,0.000425,120]
[381072333,1755996654786,-151.0,0.000425,120]
[381072334,1755996654796,-151.0,0.000425,120]
[381072335,1755996654805,-151.0,0.000425,120]
[381072336,1755996654814,-217.0334113,0.00043,120]
[381072337,1755996654823,-160.0,0.00043,120]
[381072338,1755996654832,-232.37252479,0.00043,120]
[381072339,1755996654842,-12695.67094824,0.00043,120]
[381072340,1755996654851,-156.0,0.000436,120]
[381072341,1755996654860,-501.7,0.00043835,120]
[381072342,1755996654870,-229.98,0.000439,14]
[381072343,1755996654879,-864.62199475,0.00044072,43]
[381072344,1755996654891,-9573.5,0.000441,14]
[381072345,1755996654900,-156.552375,0.00044274,60]
[381072346,1755996654909,-156.552375,0.00044274,30]
[381072347,1755996654919,-8320.09180625,0.00044888,93]
[381072348,1755996654928,-5000.0,0.00044888,96]
[381072349,1755996654938,-5000.0,0.00044888,95]
[381072350,1755996654948,-1122.16822069,0.00044972,28]
[381072351,1755996654962,-500.0,0.00045181,30]
[381072352,1755996654973,-501.7,0.00045205,120]
[381072353,1755996654982,-2200.0,0.00045747,14]
[381072354,1755996654991,-864.62199475,0.00045798,47]
[381072355,1755996655002,-156.0,0.000461,120]
[381072356,1755996655011,-501.7,0.00046575,120]
[381072357,1755996655020,-864.62199475,0.00047525,50]
[381072358,1755996655032,-500.0,0.00047676,30]
[381072359,1755996655051,-500.0,0.00047699,30]
[381072360,1755996655061,-156.552375,0.00047904,120]
[381072361,1755996655070,-501.7,0.00047945,120]
[381072362,1755996655079,-1000.0,0.00048,120]
[381072363,1755996655089,-1122.16822069,0.00048326,28]
[381072364,1755996655098,-156.0,0.000486,120]
[381072365,1755996655106,-1000.0,0.00049,120]
[381072366,1755996655116,-151.0,0.00049,120]
[381072367,1755996655126,-151.0,0.00049,120]
[381072368,1755996655136,-151.0,0.00049,120]
[381072369,1755996655145,-151.0,0.00049,120]
[381072370,1755996655154,-151.0,0.00049,120]
[381072371,1755996655163,-163.19812,0.00049,120]
[381072372,1755996655173,-277.06979112,0.00049215,120]
[381072373,1755996655182,-864.62199475,0.00049251,54]
[381072374,1755996655192,-151.0,0.00049295,120]
[381072375,1755996655202,-151.0,0.00049295,120]
[381072376,1755996655211,-391.4,0.000493,30]
[381072377,1755996655221,-480.0,0.00049315,120]
[381072378,1755996655231,-480.0,0.00049315,30]
[381072379,1755996655240,-480.0,0.00049315,120]
[381072380,1755996655249,-480.0,0.00049315,120]
[381072381,1755996655258,-480.0,0.00049315,120]
[381072382,1755996655269,-480.0,0.00049315,120]
[381072383,1755996655278,-480.0,0.00049315,120]
[381072384,1755996655288,-480.0,0.00049315,120]
[381072385,1755996655297,-500.0,0.00049315,2]
[381072386,1755996655308,-500.0,0.00049315,2]
[381072387,1755996655317,-500.0,0.00049315,2]
[381072388,1755996655327,-500.0,0.00049315,2]
[381072389,1755996655336,-500.0,0.00049315,2]
[381072390,1755996655346,-500.0,0.00049315,2]
[381072391,1755996655354,-500.0,0.00049315,2]
[381072392,1755996655364,-648.87227698,0.00049315,2]
[381072393,1755996655373,-480.0,0.00049315,120]
[381072394,1755996655383,-480.0,0.00049315,120]
[381072395,1755996655393,-577.61689721,0.00049315,120]
[381072396,1755996655402,-480.0,0.00049315,120]
[381072397,1755996655411,-480.0,0.00049315,120]
[381072398,1755996655422,-480.0,0.00049315,120]
[381072399,1755996655432,-552.89462398,0.00049315,120]
[381072400,1755996655441,-480.0,0.00049315,120]
[381072401,1755996655451,-480.0,0.00049315,120]
[381072402,1755996655460,-480.0,0.00049315,120]
[381072403,1755996655469,-480.0,0.00049315,120]
[381072404,1755996655479,-480.0,0.00049315,120]
[381072405,1755996655488,-288.00165145,0.00049315,120]
[381072406,1755996655497,-480.0,0.00049315,120]
[381072407,1755996655506,-480.0,0.00049315,120]
[381072408,1755996655516,-480.0,0.00049315,120]
[381072409,1755996655525,-480.0,0.00049315,120]
[381072410,1755996655535,-480.0,0.00049315,120]
[381072411,1755996655544,-664.88,0.00049315,120]
[381072412,1755996655553,-450.4592591,0.00049315,120]
[381072413,1755996655563,-480.0,0.00049315,120]
[381072414,1755996655572,-480.0,0.00049315,120]
[381072415,1755996655581,-480.0,0.00049315,120]
[381072416,1755996655591,-480.0,0.00049315,120]
[381072417,1755996655600,-480.0,0.00049315,120]
[381072418,1755996655610,-480.0,0.00049315,120]
[381072419,1755996655619,-480.0,0.00049315,120]
[381072420,1755996655629,-480.0,0.00049315,120]
[381072421,1755996655639,-460.17574896,0.00049315,120]
[381072422,1755996655649,-480.0,0.00049315,120]
[381072423,1755996655658,-480.0,0.00049315,120]
[381072424,1755996655668,-151.0,0.00049315,120]
[381072425,1755996655677,-151.0,0.00049315,120]
[381072426,1755996655687,-480.0,0.00049315,120]
[381072427,1755996655697,-482.02983011,0.00049315,120]
[381072428,1755996655706,-480.0,0.00049315,120]
[381072429,1755996655716,-480.0,0.00049315,120]
[381072430,1755996655726,-480.0,0.00049315,120]
[381072431,1755996655736,-480.0,0.00049315,120]
[381072432,1755996655745,-151.0,0.00049315,14]
[381072433,1755996655755,-151.0,0.00049315,14]
[381072434,1755996655765,-151.0,0.00049315,14]
[381072435,1755996655775,-151.0,0.00049315,14]
[381072436,1755996655785,-663.6,0.00049315,120]
[381072437,1755996655794,-480.0,0.00049315,120]
[381072438,1755996655805,-480.0,0.00049315,120]
[381072439,1755996655815,-480.0,0.00049315,120]
[381072440,1755996655824,-480.0,0.00049315,120]
[381072441,1755996655834,-151.0,0.00049315,120]
[381072442,1755996655844,-480.0,0.00049315,120]
[381072443,1755996655854,-151.0,0.00049315,120]
[381072444,1755996655863,-480.0,0.00049315,120]
[381072445,1755996655873,-804.07,0.00049315,120]
[381072446,1755996655883,-151.0,0.00049315,120]
[381072447,1755996655893,-151.0,0.00049315,120]
[381072448,1755996655902,-151.0,0.00049315,120]
[381072449,1755996655912,-151.0,0.00049315,120]
[381072450,1755996655922,-158.856935,0.00049315,120]
[381072451,1755996655931,-1266.69,0.00049315,120]
[381072452,1755996655941,-480.0,0.00049315,120]
[381072453,1755996655952,-480.0,0.00049315,120]
[381072454,1755996655964,-464.62004977,0.00049315,120]
[381072455,1755996655974,-151.0,0.00049315,120]
[381072456,1755996655988,-151.0,0.00049315,120]
[381072457,1755996655999,-480.0,0.00049315,120]
[381072458,1755996656008,-480.0,0.00049315,120]
[381072459,1755996656018,-480.0,0.00049315,120]
[381072460,1755996656027,-480.0,0.00049315,120]
[381072461,1755996656038,-481.31045199,0.00049315,120]
[381072462,1755996656048,-480.0,0.00049315,120]
[381072463,1755996656057,-480.0,0.00049315,120]
[381072464,1755996656067,-2332.27,0.00049315,120]
[381072465,1755996656077,-480.0,0.00049315,120]
[381072466,1755996656086,-516.40971804,0.00049315,12]
[381072467,1755996656096,-461.38864696,0.00049315,120]
[381072468,1755996656106,-480.0,0.00049315,120]
[381072469,1755996656116,-564.24730544,0.00049315,120]
[381072470,1755996656126,-480.0,0.00049315,120]
[381072471,1755996656135,-480.0,0.00049315,120]
[381072472,1755996656144,-480.0,0.00049315,120]
[381072473,1755996656154,-1000.42,0.00049315,120]
[381072474,1755996656164,-1000.42,0.00049315,120]
[381072475,1755996656174,-1000.42,0.00049315,120]
[381072476,1755996656184,-480.0,0.00049315,120]
[381072477,1755996656194,-1000.42,0.00049315,120]
[381072478,1755996656203,-1000.42,0.00049315,120]
[381072479,1755996656212,-1000.42,0.00049315,120]
[381072480,1755996656222,-1000.42,0.00049315,120]
[381072481,1755996656231,-1000.42,0.00049315,120]
[381072482,1755996656241,-1000.42,0.00049315,120]
[381072483,1755996656250,-1000.42,0.00049315,120]
[381072484,1755996656259,-1000.42,0.00049315,120]
[381072485,1755996656268,-1000.42,0.00049315,120]
[381072486,1755996656277,-1000.42,0.00049315,120]
[381072487,1755996656286,-1000.42,0.00049315,120]
[381072488,1755996656296,-1000.42,0.00049315,120]
[381072489,1755996656305,-1000.42,0.00049315,120]
[381072490,1755996656314,-1000.42,0.00049315,120]
[381072491,1755996656324,-1000.42,0.00049315,120]
[381072492,1755996656333,-1000.42,0.00049315,120]
[381072493,1755996656342,-1000.42,0.00049315,120]
[381072494,1755996656352,-1000.42,0.00049315,120]
[381072495,1755996656362,-1000.42,0.00049315,120]
[381072496,1755996656371,-1000.42,0.00049315,120]
[381072497,1755996656381,-1000.44195525,0.00049315,120]
[381072498,1755996656393,-480.0,0.00049315,120]
[381072499,1755996656403,-480.0,0.00049315,90]
[381072500,1755996656413,-199.77344096,0.00049315,120]
[381072501,1755996656424,-480.0,0.00049315,120]
[381072502,1755996656434,-480.0,0.00049315,120]
[381072503,1755996656443,-480.0,0.00049315,120]
[381072504,1755996656454,-480.0,0.00049315,120]
[381072505,1755996656463,-480.0,0.00049315,120]
[381072506,1755996656472,-480.0,0.00049315,120]
[381072507,1755996656482,-480.0,0.00049315,120]
[381072508,1755996656491,-480.0,0.00049315,120]
[381072509,1755996656501,-480.0,0.00049315,120]
[381072510,1755996656510,-526.71543322,0.00049315,120]
[381072511,1755996656520,-480.0,0.00049315,120]
[381072512,1755996656529,-711.59,0.00049315,120]
[381072513,1755996656539,-480.0,0.00049315,120]
[381072514,1755996656549,-1534.79,0.00049315,120]
[381072515,1755996656559,-480.0,0.00049315,120]
[381072516,1755996656569,-480.0,0.00049315,120]
[381072517,1755996656578,-646.53,0.00049315,120]
[381072518,1755996656588,-480.0,0.00049315,120]
[381072519,1755996656598,-575.38,0.00049315,120]
[381072520,1755996656607,-480.0,0.00049315,120]
[381072521,1755996656616,-695.21,0.00049315,120]
[381072522,1755996656626,-151.0,0.00049315,120]
[381072523,1755996656637,-152.010756,0.00049315,120]
[381072524,1755996656646,-480.0,0.00049315,120]
[381072525,1755996656656,-480.0,0.00049315,120]
[381072526,1755996656665,-480.0,0.00049315,120]
[381072527,1755996656675,-480.0,0.00049315,120]
[381072528,1755996656685,-480.0,0.00049315,120]
[381072529,1755996656695,-480.0,0.00049315,120]
[381072530,1755996656704,-151.0,0.00049315,120]
[381072531,1755996656713,-851.88,0.00049315,120]
[381072532,1755996656723,-480.0,0.00049315,120]
[381072533,1755996656733,-480.0,0.00049315,120]
[381072534,1755996656742,-480.0,0.00049315,7]
[381072535,1755996656752,-481.67151324,0.00049315,120]
[381072536,1755996656761,-480.0,0.00049315,120]
[381072537,1755996656771,-480.0,0.00049315,120]
[381072538,1755996656781,-480.0,0.00049315,120]
[381072539,1755996656791,-480.0,0.00049315,120]
[381072540,1755996656801,-480.0,0.00049315,120]
[381072541,1755996656810,-480.0,0.00049315,120]
[381072542,1755996656820,-500.0,0.00049315,120]
[381072543,1755996656831,-500.0,0.00049315,120]
[381072544,1755996656840,-480.0,0.00049315,120]
[381072545,1755996656849,-500.0,0.00049315,120]
[381072546,1755996656859,-500.0,0.00049315,120]
[381072547,1755996656868,-500.0,0.00049315,120]
[381072548,1755996656878,-500.0,0.00049315,120]
[381072549,1755996656887,-500.0,0.00049315,120]
[381072550,1755996656897,-500.0,0.00049315,120]
[381072551,1755996656906,-500.0,0.00049315,120]
[381072552,1755996656915,-500.0,0.00049315,120]
[381072553,1755996656924,-500.0,0.00049315,120]
[381072554,1755996656934,-500.0,0.00049315,120]
[381072555,1755996656943,-541.29586064,0.00049315,120]
[381072556,1755996656953,-480.0,0.00049315,120]
[381072557,1755996656966,-480.0,0.00049315,120]
[381072558,1755996656976,-480.0,0.00049315,120]
[381072559,1755996656985,-151.0,0.00049315,120]
[381072560,1755996656995,-480.0,0.00049315,120]
[381072561,1755996657006,-480.52392482,0.00049315,120]
[381072562,1755996657016,-151.0,0.00049315,120]
[381072563,1755996657025,-151.0,0.00049315,120]
[381072564,1755996657035,-480.0,0.00049315,120]
[381072565,1755996657045,-151.0,0.00049315,120]
[381072566,1755996657055,-480.0,0.00049315,120]
[381072567,1755996657065,-480.0,0.00049315,20]
[381072568,1755996657074,-480.0,0.00049315,120]
[381072569,1755996657084,-480.0,0.00049315,120]
[381072570,1755996657093,-480.0,0.00049315,120]
[381072571,1755996657102,-2332.11,0.00049315,120]
[381072572,1755996657112,-480.0,0.00049315,120]
[381072573,1755996657123,-480.0,0.00049315,120]
[381072574,1755996657133,-480.0,0.00049315,120]
[381072575,1755996657143,-480.0,0.00049315,120]
[381072576,1755996657153,-731.76,0.00049315,120]
[381072577,1755996657163,-267.27606373,0.00049315,120]
[381072578,1755996657171,-480.0,0.00049315,120]
[381072579,1755996657181,-480.0,0.00049315,120]
[381072580,1755996657190,-480.0,0.00049315,120]
[381072581,1755996657200,-480.0,0.00049315,120]
[381072582,1755996657210,-480.0,0.00049315,120]
[381072583,1755996657219,-379.09354685,0.00049315,30]
[381072584,1755996657229,-650.24,0.00049315,120]
[381072585,1755996657239,-480.0,0.00049315,120]
[381072586,1755996657249,-480.0,0.00049315,120]
[381072587,1755996657258,-480.0,0.00049315,120]
[381072588,1755996657267,-480.0,0.00049315,120]
[381072589,1755996657277,-319.35,0.00049315,120]
[381072590,1755996657286,-480.0,0.00049315,120]
[381072591,1755996657296,-480.0,0.00049315,120]
[381072592,1755996657306,-480.0,0.00049315,120]
[381072593,1755996657316,-810.42,0.00049315,120]
[381072594,1755996657325,-480.0,0.00049315,120]
[381072595,1755996657335,-480.0,0.00049315,120]
[381072596,1755996657345,-480.0,0.00049315,120]
[381072597,1755996657360,-480.0,0.00049315,120]
[381072598,1755996657375,-610.24,0.00049315,120]
[381072599,1755996657385,-480.0,0.00049315,120]
[381072600,1755996657395,-480.0,0.00049315,120]
[381072601,1755996657404,-691.79,0.00049315,120]
[381072602,1755996657414,-480.0,0.00049315,120]
[381072603,1755996657423,-480.0,0.00049315,120]
[381072604,1755996657433,-480.0,0.00049315,120]
[381072605,1755996657443,-480.0,0.00049315,120]
[381072606,1755996657452,-480.0,0.00049315,120]
[381072607,1755996657462,-480.0,0.00049315,120]
[381072608,1755996657471,-480.0,0.00049315,120]
[381072609,1755996657481,-480.0,0.00049315,120]
[381072610,1755996657490,-480.0,0.00049315,120]
[381072611,1755996657500,-480.0,0.00049315,120]
[381072612,1755996657509,-480.0,0.00049315,120]
[381072613,1755996657519,-480.0,0.00049315,120]
[381072614,1755996657528,-480.0,0.00049315,120]
[381072615,1755996657538,-480.0,0.00049315,120]
[381072616,1755996657549,-1307.61,0.00049315,120]
[381072617,1755996657559,-480.0,0.00049315,120]
[381072618,1755996657568,-480.0,0.00049315,120]
[381072619,1755996657578,-703.33,0.00049315,120]
[381072620,1755996657588,-480.0,0.00049315,120]
[381072621,1755996657597,-480.0,0.00049315,120]
[381072622,1755996657607,-480.0,0.00049315,120]
[381072623,1755996657617,-480.0,0.00049315,120]
[381072624,1755996657627,-480.0,0.00049315,120]
[381072625,1755996657637,-480.0,0.00049315,120]
[381072626,1755996657647,-480.0,0.00049315,120]
[381072627,1755996657657,-1850.74,0.00049315,120]
[381072628,1755996657667,-484.03,0.00049315,120]
[381072629,1755996657678,-4214.43,0.00049315,120]
[381072630,1755996657688,-480.0,0.00049315,120]
[381072631,1755996657698,-480.0,0.00049315,120]
[381072632,1755996657708,-480.0,0.00049315,30]
[381072633,1755996657718,-480.0,0.00049315,120]
[381072634,1755996657728,-480.0,0.00049315,120]
[381072635,1755996657904,-480.0,0.00049315,120]
[381072636,1755996657914,-480.0,0.00049315,120]
[381072637,1755996657923,-480.0,0.00049315,120]
[381072638,1755996657932,-480.0,0.00049315,20]
[381072639,1755996657942,-480.0,0.00049315,120]
[381072640,1755996657951,-480.0,0.00049315,2]
[381072641,1755996657963,-480.0,0.00049315,120]
[381072642,1755996657973,-2139.47,0.00049315,120]
[381072643,1755996657983,-480.0,0.00049315,120]
[381072644,1755996657993,-190.53758285,0.00049315,2]
[381072645,1755996658003,-480.0,0.00049315,120]
[381072646,1755996658012,-358.0690357,0.00049315,120]
[381072647,1755996658022,-480.0,0.00049315,120]
[381072648,1755996658031,-480.0,0.00049315,120]
[381072649,1755996658041,-480.0,0.00049315,120]
[381072650,1755996658050,-480.0,0.00049315,120]
[381072651,1755996658060,-480.0,0.00049315,120]
[381072652,1755996658070,-480.0,0.00049315,120]
[381072653,1755996658079,-480.0,0.00049315,120]
[381072654,1755996658088,-514.15,0.00049315,120]
[381072655,1755996658098,-480.0,0.00049315,120]
[381072656,1755996658107,-480.0,0.00049315,120]
[381072657,1755996658117,-480.0,0.00049315,120]
[381072658,1755996658126,-480.0,0.00049315,120]
[381072659,1755996658135,-1681.11,0.00049315,120]
[381072660,1755996658144,-710.23,0.00049315,120]
[381072661,1755996658154,-2542.94,0.00049315,120]
[381072662,1755996658163,-507.98,0.00049315,120]
[381072663,1755996658174,-480.0,0.00049315,120]
[381072664,1755996658183,-480.0,0.00049315,120]
[381072665,1755996658193,-3723.2,0.00049315,120]
[381072666,1755996658203,-1091.93,0.00049315,120]
[381072667,1755996658211,-480.0,0.00049315,120]
[381072668,1755996658221,-790.71,0.00049315,120]
[381072669,1755996658231,-480.0,0.00049315,120]
[381072670,1755996658240,-492.9,0.00049315,120]
[381072671,1755996658250,-1108.28,0.00049315,120]
[381072672,1755996658259,-480.0,0.00049315,120]
[381072673,1755996658268,-740.91,0.00049315,120]
[381072674,1755996658277,-480.0,0.00049315,120]
[381072675,1755996658286,-480.0,0.00049315,120]
[381072676,1755996658296,-3132.3,0.00049315,120]
[381072677,1755996658305,-480.0,0.00049315,120]
[381072678,1755996658315,-480.0,0.00049315,120]
[381072679,1755996658326,-480.0,0.00049315,120]
[381072680,1755996658335,-480.0,0.00049315,120]
[381072681,1755996658344,-480.0,0.00049315,120]
[381072682,1755996658353,-480.0,0.00049315,120]
[381072683,1755996658363,-480.0,0.00049315,120]
[381072684,1755996658373,-501.12809129,0.00049315,120]
[381072685,1755996658382,-882.16,0.00049315,120]
[381072686,1755996658392,-480.0,0.00049315,120]
[381072687,1755996658401,-480.0,0.00049315,120]
[381072688,1755996658411,-714.98,0.00049315,120]
[381072689,1755996658421,-481.11406385,0.00049315,120]
[381072690,1755996658430,-480.0,0.00049315,120]
[381072691,1755996658439,-782.26,0.00049315,120]
[381072692,1755996658449,-543.54761948,0.00049315,120]
[381072693,1755996658460,-480.0,0.00049315,120]
[381072694,1755996658470,-528.99761529,0.00049315,120]
[381072695,1755996658479,-480.0,0.00049315,120]
[381072696,1755996658489,-480.0,0.00049315,120]
[381072697,1755996658498,-480.0,0.00049315,120]
[381072698,1755996658508,-480.0,0.00049315,120]
[381072699,1755996658517,-480.0,0.00049315,120]
[381072700,1755996658527,-541.98,0.00049315,120]
[381072701,1755996658536,-722.23,0.00049315,120]
[381072702,1755996658546,-1901.52,0.00049315,120]
[381072703,1755996658555,-842.81,0.00049315,120]
[381072704,1755996658564,-165.10735531,0.00049315,120]
[381072705,1755996658573,-480.0,0.00049315,120]
[381072706,1755996658583,-706.06,0.00049315,120]
[381072707,1755996658593,-480.0,0.00049315,120]
[381072708,1755996658602,-480.0,0.00049315,120]
[381072709,1755996658611,-480.0,0.00049315,7]
[381072710,1755996658620,-480.0,0.00049315,120]
[381072711,1755996658629,-480.0,0.00049315,120]
[381072712,1755996658639,-480.0,0.00049315,120]
[381072713,1755996658648,-2877.71,0.00049315,120]
[381072714,1755996658658,-480.0,0.00049315,120]
[381072715,1755996658667,-756.5,0.00049315,120]